[Event "Titled Tuesday Blitz December 20 Late 2022"]
[White "Goltsev, Dmitry"]
[Black "Koutlas, Nikolaos"]
[WhiteFideId "24176710"]
[BlackFideId "25827138"]
[WhiteElo "2729"]
[BlackElo "2557"]
[Result "1-0"]
[Round "06"]
[TimeControl "180+1"]
[Date "2022.12.21"]
[WhiteClock "0:01:50"]
[BlackClock "0:00:03"]

1. e4 {[%clk 0:03:00]}  g6 {[%clk 0:02:58]} 2. h4 {[%clk 0:02:59]}  h5 {[%clk 0:02:57]} 3. Nf3 {[%clk 0:02:58]}  Bg7 {[%clk 0:02:57]} 4. d4 {[%clk 0:02:58]}  d6 {[%clk 0:02:55]} 5. Nc3 {[%clk 0:02:58]}  a6 {[%clk 0:02:55]} 6. a4 {[%clk 0:02:58]}  Bg4 {[%clk 0:02:43]} 7. Be2 {[%clk 0:02:58]}  Nf6 {[%clk 0:02:37]} 8. Bg5 {[%clk 0:02:56]}  Nc6 {[%clk 0:02:36]} 9. d5 {[%clk 0:02:54]}  Nb4 {[%clk 0:02:24]} 10. Nd4 {[%clk 0:02:42]}  Bxe2 {[%clk 0:02:13]} 11. Ndxe2 {[%clk 0:02:41]}  c5 {[%clk 0:02:12]} 12. a5 {[%clk 0:02:34]}  b5 {[%clk 0:02:02]} 13. axb6 {[%clk 0:02:30]}  a5 {[%clk 0:01:59]} 14. f3 {[%clk 0:02:23]}  Qxb6 {[%clk 0:01:56]} 15. O-O {[%clk 0:02:23]}  O-O {[%clk 0:01:37]} 16. Qd2 {[%clk 0:02:22]}  Rfe8 {[%clk 0:01:30]} 17. Bh6 {[%clk 0:02:21]}  Bh8 {[%clk 0:01:29]} 18. Kh1 {[%clk 0:02:16]}  e6 {[%clk 0:01:23]} 19. dxe6 {[%clk 0:02:17]}  Rxe6 {[%clk 0:01:23]} 20. Nf4 {[%clk 0:02:17]}  Re5 {[%clk 0:01:16]} 21. Rfd1 {[%clk 0:02:15]}  Rd8 {[%clk 0:01:07]} 22. Bg5 {[%clk 0:02:08]}  Rd7 {[%clk 0:01:01]} 23. Nd3 {[%clk 0:02:01]}  Re6 {[%clk 0:00:55]} 24. Na4 {[%clk 0:01:57]}  Qd8 {[%clk 0:00:27]} 25. Bxf6 {[%clk 0:01:54]}  Qxf6 {[%clk 0:00:27]} 26. Ndxc5 {[%clk 0:01:53]}  Qxh4+ {[%clk 0:00:26]} 27. Kg1 {[%clk 0:01:53]}  dxc5 {[%clk 0:00:20]} 28. Qxd7 {[%clk 0:01:54]}  Nxc2 {[%clk 0:00:18]} 29. Nxc5 {[%clk 0:01:51]}  Re5 {[%clk 0:00:11]} 30. Qd8+ {[%clk 0:01:49]}  Qxd8 {[%clk 0:00:07]} 31. Rxd8+ {[%clk 0:01:49]}  Kh7 {[%clk 0:00:08]} 32. Rxa5 {[%clk 0:01:49]}  Bf6 {[%clk 0:00:05]} 33. Rd5 {[%clk 0:01:49]}  Rxd5 {[%clk 0:00:03]} 34. exd5 {[%clk 0:01:50]}  Nb4 {[%clk 0:00:02]} 35. d6 {[%clk 0:01:49]}  Nc6 {[%clk 0:00:03]} 36. Ra6 {[%clk 0:01:49]}  Nd8 {[%clk 0:00:01]} 37. Ne4 {[%clk 0:01:49]}  Bxb2 {[%clk 0:00:01]} 38. Ra8 {[%clk 0:01:49]}  Bd4+ {[%clk 0:00:02]} 39. Kh1 {[%clk 0:01:48]}  Ne6 {[%clk 0:00:03]} 40. d7 {[%clk 0:01:49]}  Bb6 {[%clk 0:00:02]} 41. Nf6+ {[%clk 0:01:48]}  Kg7 {[%clk 0:00:03]} 42. Nd5 {[%clk 0:01:49]}  Bd8 {[%clk 0:00:02]} 43. Nf4 {[%clk 0:01:49]}  Kf8 {[%clk 0:00:03]} 44. Nxe6+ {[%clk 0:01:49]}  fxe6 {[%clk 0:00:03]} 45. Rxd8+ {[%clk 0:01:49]}  Ke7 {[%clk 0:00:03]} 46. Rg8 {[%clk 0:01:50]} 1-0


[Site "https://www.chess.com"]

[Event "Titled Tuesday Blitz December 20 Late 2022"]
[White "Han, Yichen"]
[Black "Ferreira, Vitor Hugo Vieira"]
[WhiteFideId "1054430"]
[BlackFideId "2119765"]
[WhiteElo "2323"]
[BlackElo "2146"]
[Result "1-0"]
[Round "06"]
[TimeControl "180+1"]
[Date "2022.12.21"]
[WhiteClock "0:00:08"]
[BlackClock "0:00:12"]

1. d4 {[%clk 0:03:00]}  d5 {[%clk 0:02:59]} 2. Bf4 {[%clk 0:03:00]}  e6 {[%clk 0:02:56]} 3. e3 {[%clk 0:03:01]}  Bd6 {[%clk 0:02:56]} 4. Nd2 {[%clk 0:02:59]}  Ne7 {[%clk 0:02:54]} 5. Bg3 {[%clk 0:02:57]}  O-O {[%clk 0:02:54]} 6. Ngf3 {[%clk 0:02:58]}  Nf5 {[%clk 0:02:54]} 7. Bd3 {[%clk 0:02:55]}  Nxg3 {[%clk 0:02:54]} 8. hxg3 {[%clk 0:02:56]}  g6 {[%clk 0:02:52]} 9. e4 {[%clk 0:02:50]}  c5 {[%clk 0:02:51]} 10. c3 {[%clk 0:02:46]}  Re8 {[%clk 0:02:47]} 11. Qe2 {[%clk 0:02:33]}  Nc6 {[%clk 0:02:42]} 12. e5 {[%clk 0:02:27]}  Bf8 {[%clk 0:02:42]} 13. Qe3 {[%clk 0:02:26]}  cxd4 {[%clk 0:02:39]} 14. cxd4 {[%clk 0:02:26]}  Nb4 {[%clk 0:02:36]} 15. Bb1 {[%clk 0:02:21]}  Qc7 {[%clk 0:02:31]} 16. Ng5 {[%clk 0:02:17]}  h5 {[%clk 0:02:31]} 17. O-O {[%clk 0:01:42]}  Bh6 {[%clk 0:02:18]} 18. Ndf3 {[%clk 0:01:38]}  Nc2 {[%clk 0:02:15]} 19. Bxc2 {[%clk 0:01:37]}  Qxc2 {[%clk 0:02:15]} 20. Rac1 {[%clk 0:01:32]}  Qf5 {[%clk 0:02:15]} 21. Rc7 {[%clk 0:01:32]}  b6 {[%clk 0:02:01]} 22. Rfc1 {[%clk 0:01:03]}  Ba6 {[%clk 0:01:59]} 23. Qf4 {[%clk 0:01:03]}  Qxf4 {[%clk 0:01:57]} 24. gxf4 {[%clk 0:01:04]}  Rec8 {[%clk 0:01:56]} 25. g3 {[%clk 0:00:57]}  Rxc7 {[%clk 0:01:48]} 26. Rxc7 {[%clk 0:00:58]}  Rc8 {[%clk 0:01:48]} 27. Rxa7 {[%clk 0:00:55]}  Rc1+ {[%clk 0:01:47]} 28. Kh2 {[%clk 0:00:54]}  Bd3 {[%clk 0:01:42]} 29. Nxf7 {[%clk 0:00:51]}  Bf8 {[%clk 0:01:30]} 30. N3g5 {[%clk 0:00:19]}  Rc2 {[%clk 0:01:25]} 31. Kg1 {[%clk 0:00:12]}  Bf5 {[%clk 0:00:55]} 32. Nd6 {[%clk 0:00:09]}  Bh6 {[%clk 0:00:39]} 33. Nxf5 {[%clk 0:00:09]}  Bxg5 {[%clk 0:00:32]} 34. Nd6 {[%clk 0:00:05]}  Bh6 {[%clk 0:00:28]} 35. Nf7 {[%clk 0:00:05]}  Bf8 {[%clk 0:00:26]} 36. Ng5 {[%clk 0:00:06]}  Rc6 {[%clk 0:00:23]} 37. a4 {[%clk 0:00:05]}  Bh6 {[%clk 0:00:23]} 38. b4 {[%clk 0:00:04]}  Bxg5 {[%clk 0:00:23]} 39. fxg5 {[%clk 0:00:05]}  Rc4 {[%clk 0:00:23]} 40. a5 {[%clk 0:00:04]}  Rxb4 {[%clk 0:00:23]} 41. axb6 {[%clk 0:00:02]}  Rxb6 {[%clk 0:00:23]} 42. Re7 {[%clk 0:00:02]}  Kf8 {[%clk 0:00:22]} 43. Rd7 {[%clk 0:00:02]}  Rb4 {[%clk 0:00:22]} 44. Rd6 {[%clk 0:00:03]}  Ke7 {[%clk 0:00:21]} 45. Kg2 {[%clk 0:00:03]}  Rxd4 {[%clk 0:00:21]} 46. Ra6 {[%clk 0:00:04]}  Re4 {[%clk 0:00:20]} 47. f4 {[%clk 0:00:04]}  h4 {[%clk 0:00:18]} 48. Ra7+ {[%clk 0:00:04]}  Kf8 {[%clk 0:00:18]} 49. Ra8+ {[%clk 0:00:04]}  Kf7 {[%clk 0:00:18]} 50. Ra7+ {[%clk 0:00:05]}  Ke8 {[%clk 0:00:16]} 51. Ra8+ {[%clk 0:00:05]}  Kd7 {[%clk 0:00:17]} 52. Ra7+ {[%clk 0:00:06]}  Kc6 {[%clk 0:00:18]} 53. Ra6+ {[%clk 0:00:06]}  Kc5 {[%clk 0:00:17]} 54. Rxe6 {[%clk 0:00:06]}  hxg3 {[%clk 0:00:14]} 55. Kxg3 {[%clk 0:00:06]}  Kd4 {[%clk 0:00:12]} 56. Rxg6 {[%clk 0:00:06]}  Ke3 {[%clk 0:00:11]} 57. Rf6 {[%clk 0:00:06]}  d4 {[%clk 0:00:11]} 58. g6 {[%clk 0:00:07]}  d3 {[%clk 0:00:08]} 59. g7 {[%clk 0:00:07]}  d2 {[%clk 0:00:09]} 60. Rd6 {[%clk 0:00:08]}  Rd4 {[%clk 0:00:09]} 61. Rxd4 {[%clk 0:00:08]}  Kxd4 {[%clk 0:00:10]} 62. g8=Q {[%clk 0:00:08]}  d1=Q {[%clk 0:00:11]} 63. Qd8+ {[%clk 0:00:09]}  Ke3 {[%clk 0:00:12]} 64. Qxd1 {[%clk 0:00:09]}  Ke4 {[%clk 0:00:12]} 65. Qe2+ {[%clk 0:00:08]} 1-0


[Site "https://www.chess.com"]

[Event "Titled Tuesday Blitz December 20 Late 2022"]
[White "Haszon, David"]
[Black "Walentukiewicz, Michal"]
[WhiteFideId "733610"]
[BlackFideId "1126903"]
[WhiteElo "2210"]
[BlackElo "2028"]
[Result "1-0"]
[Round "06"]
[TimeControl "180+1"]
[Date "2022.12.21"]
[WhiteClock "0:00:43"]
[BlackClock "0:00:45"]

1. d4 {[%clk 0:03:00]}  g6 {[%clk 0:02:59]} 2. Bf4 {[%clk 0:03:01]}  Bg7 {[%clk 0:03:00]} 3. Nc3 {[%clk 0:03:01]}  c5 {[%clk 0:03:00]} 4. dxc5 {[%clk 0:02:58]}  Nf6 {[%clk 0:02:59]} 5. e4 {[%clk 0:02:57]}  O-O {[%clk 0:03:00]} 6. Nf3 {[%clk 0:02:57]}  Qa5 {[%clk 0:02:59]} 7. Qd2 {[%clk 0:02:41]}  Qxc5 {[%clk 0:02:59]} 8. Be3 {[%clk 0:02:42]}  Qa5 {[%clk 0:02:59]} 9. Bd3 {[%clk 0:02:41]}  Nc6 {[%clk 0:02:59]} 10. O-O {[%clk 0:02:42]}  d6 {[%clk 0:02:59]} 11. a3 {[%clk 0:02:41]}  Bg4 {[%clk 0:02:58]} 12. b4 {[%clk 0:02:39]}  Qd8 {[%clk 0:02:57]} 13. Nd4 {[%clk 0:02:39]}  Nxd4 {[%clk 0:02:56]} 14. Bxd4 {[%clk 0:02:40]}  Be6 {[%clk 0:02:56]} 15. Rad1 {[%clk 0:02:37]}  Qc8 {[%clk 0:02:56]} 16. h3 {[%clk 0:02:32]}  a6 {[%clk 0:02:55]} 17. f4 {[%clk 0:02:31]}  Rd8 {[%clk 0:02:55]} 18. f5 {[%clk 0:02:30]}  Bc4 {[%clk 0:02:55]} 19. Qe2 {[%clk 0:02:11]}  Bxd3 {[%clk 0:02:52]} 20. cxd3 {[%clk 0:02:12]}  Qd7 {[%clk 0:02:32]} 21. g4 {[%clk 0:02:03]}  Rac8 {[%clk 0:02:31]} 22. Bxf6 {[%clk 0:01:58]}  Bxf6 {[%clk 0:02:31]} 23. Nd5 {[%clk 0:01:59]}  Bd4+ {[%clk 0:02:32]} 24. Kg2 {[%clk 0:01:59]}  f6 {[%clk 0:02:24]} 25. fxg6 {[%clk 0:01:57]}  hxg6 {[%clk 0:02:24]} 26. Nf4 {[%clk 0:01:58]}  Kg7 {[%clk 0:02:22]} 27. Rc1 {[%clk 0:01:53]}  Rxc1 {[%clk 0:02:20]} 28. Rxc1 {[%clk 0:01:54]}  Rc8 {[%clk 0:02:21]} 29. Rc4 {[%clk 0:01:47]}  Rxc4 {[%clk 0:01:55]} 30. dxc4 {[%clk 0:01:48]}  Be5 {[%clk 0:01:51]} 31. Nd5 {[%clk 0:01:45]}  e6 {[%clk 0:01:51]} 32. Ne3 {[%clk 0:01:38]}  Qc6 {[%clk 0:01:51]} 33. Qd3 {[%clk 0:01:39]}  Bf4 {[%clk 0:01:49]} 34. Nc2 {[%clk 0:01:33]}  b5 {[%clk 0:01:43]} 35. Nd4 {[%clk 0:01:27]}  bxc4 {[%clk 0:01:31]} 36. Nxe6+ {[%clk 0:01:27]}  Kf7 {[%clk 0:01:21]} 37. Nd8+ {[%clk 0:01:21]}  Ke8 {[%clk 0:01:21]} 38. Nxc6 {[%clk 0:01:17]}  cxd3 {[%clk 0:01:22]} 39. Kf3 {[%clk 0:01:17]}  Bc1 {[%clk 0:01:15]} 40. a4 {[%clk 0:01:16]}  Kd7 {[%clk 0:01:15]} 41. Nb8+ {[%clk 0:01:16]}  Ke6 {[%clk 0:01:13]} 42. Nxa6 {[%clk 0:01:16]}  Ke5 {[%clk 0:01:13]} 43. b5 {[%clk 0:01:12]}  d5 {[%clk 0:01:04]} 44. exd5 {[%clk 0:01:10]}  Kxd5 {[%clk 0:01:05]} 45. Nb4+ {[%clk 0:01:05]}  Kc4 {[%clk 0:01:05]} 46. b6 {[%clk 0:01:00]}  Bb2 {[%clk 0:00:50]} 47. b7 {[%clk 0:00:59]}  Be5 {[%clk 0:00:49]} 48. Nxd3 {[%clk 0:00:42]}  Kxd3 {[%clk 0:00:49]} 49. h4 {[%clk 0:00:43]}  Kc4 {[%clk 0:00:45]} 50. h5 {[%clk 0:00:43]}  gxh5 {[%clk 0:00:44]} 51. gxh5 {[%clk 0:00:44]}  Kc5 {[%clk 0:00:44]} 52. h6 {[%clk 0:00:44]}  Kc6 {[%clk 0:00:45]} 53. h7 {[%clk 0:00:45]}  f5 {[%clk 0:00:45]} 54. b8=Q {[%clk 0:00:43]} 1-0


[Site "https://www.chess.com"]

[Event "Titled Tuesday Blitz December 20 Late 2022"]
[White "Izeta Txabarri, Felix"]
[Black "Lopez Idarraga, Daniel Eduardo"]
[WhiteFideId "2200260"]
[BlackFideId "4405501"]
[WhiteElo "2456"]
[BlackElo "2064"]
[Result "1-0"]
[Round "06"]
[TimeControl "180+1"]
[Date "2022.12.21"]
[WhiteClock "0:00:05"]
[BlackClock "0:01:09"]

1. d4 {[%clk 0:03:00]}  d5 {[%clk 0:02:59]} 2. Nf3 {[%clk 0:03:00]}  Nf6 {[%clk 0:02:59]} 3. c4 {[%clk 0:03:00]}  e6 {[%clk 0:02:59]} 4. Nc3 {[%clk 0:03:00]}  c6 {[%clk 0:02:59]} 5. e3 {[%clk 0:03:00]}  Nbd7 {[%clk 0:02:58]} 6. Bd3 {[%clk 0:03:00]}  Bd6 {[%clk 0:02:58]} 7. O-O {[%clk 0:03:00]}  O-O {[%clk 0:02:59]} 8. e4 {[%clk 0:03:00]}  dxe4 {[%clk 0:02:58]} 9. Nxe4 {[%clk 0:03:01]}  Nxe4 {[%clk 0:02:58]} 10. Bxe4 {[%clk 0:03:02]}  Nf6 {[%clk 0:02:52]} 11. Bc2 {[%clk 0:03:01]}  b6 {[%clk 0:02:50]} 12. Bg5 {[%clk 0:03:00]}  Be7 {[%clk 0:02:48]} 13. Qd3 {[%clk 0:02:59]}  g6 {[%clk 0:02:46]} 14. Ne5 {[%clk 0:02:55]}  Bb7 {[%clk 0:02:46]} 15. Qf3 {[%clk 0:02:49]}  Kg7 {[%clk 0:02:43]} 16. Qf4 {[%clk 0:02:18]}  Ng8 {[%clk 0:02:35]} 17. Bxe7 {[%clk 0:02:08]}  Qxe7 {[%clk 0:02:36]} 18. Be4 {[%clk 0:01:58]}  c5 {[%clk 0:02:31]} 19. Bxb7 {[%clk 0:01:45]}  Qxb7 {[%clk 0:02:32]} 20. Rad1 {[%clk 0:01:42]}  cxd4 {[%clk 0:02:31]} 21. Qxd4 {[%clk 0:01:42]}  Nf6 {[%clk 0:02:17]} 22. Ng4 {[%clk 0:00:55]}  Qe7 {[%clk 0:02:15]} 23. h3 {[%clk 0:00:46]}  Rfd8 {[%clk 0:02:14]} 24. Qe5 {[%clk 0:00:42]}  Rxd1 {[%clk 0:02:11]} 25. Rxd1 {[%clk 0:00:40]}  Rd8 {[%clk 0:02:12]} 26. Rxd8 {[%clk 0:00:29]}  Qxd8 {[%clk 0:02:13]} 27. b4 {[%clk 0:00:24]}  h5 {[%clk 0:02:11]} 28. Nxf6 {[%clk 0:00:15]}  Qxf6 {[%clk 0:02:12]} 29. f4 {[%clk 0:00:14]}  Qxe5 {[%clk 0:01:56]} 30. fxe5 {[%clk 0:00:14]}  f6 {[%clk 0:01:57]} 31. exf6+ {[%clk 0:00:14]}  Kxf6 {[%clk 0:01:58]} 32. Kf2 {[%clk 0:00:14]}  Ke5 {[%clk 0:01:36]} 33. Ke3 {[%clk 0:00:14]}  a6 {[%clk 0:01:37]} 34. h4 {[%clk 0:00:12]}  Kf5 {[%clk 0:01:32]} 35. g3 {[%clk 0:00:11]}  Ke5 {[%clk 0:01:29]} 36. a3 {[%clk 0:00:11]}  a5 {[%clk 0:01:24]} 37. c5 {[%clk 0:00:04]}  axb4 {[%clk 0:01:21]} 38. cxb6 {[%clk 0:00:05]}  Kd6 {[%clk 0:01:09]} 39. axb4 {[%clk 0:00:05]} 1-0


[Site "https://www.chess.com"]

[Event "Titled Tuesday Blitz December 20 Late 2022"]
[White "Jimenez Almeida, Luis David"]
[Black "Dong, Bao Nghia"]
[WhiteFideId "22242244"]
[BlackFideId "12400343"]
[WhiteElo "2158"]
[BlackElo "2305"]
[Result "0-1"]
[Round "06"]
[TimeControl "180+1"]
[Date "2022.12.21"]
[WhiteClock "0:00:18"]
[BlackClock "0:01:30"]

1. e4 {[%clk 0:03:00]}  e6 {[%clk 0:02:59]} 2. Nf3 {[%clk 0:02:57]}  d5 {[%clk 0:03:00]} 3. Nc3 {[%clk 0:02:54]}  Nf6 {[%clk 0:02:59]} 4. e5 {[%clk 0:02:54]}  Nfd7 {[%clk 0:03:00]} 5. d4 {[%clk 0:02:55]}  c5 {[%clk 0:03:00]} 6. dxc5 {[%clk 0:02:55]}  Nc6 {[%clk 0:03:00]} 7. Bf4 {[%clk 0:02:56]}  Bxc5 {[%clk 0:03:01]} 8. Bd3 {[%clk 0:02:56]}  h6 {[%clk 0:03:01]} 9. h4 {[%clk 0:02:52]}  a6 {[%clk 0:03:01]} 10. Qe2 {[%clk 0:02:52]}  b5 {[%clk 0:03:01]} 11. O-O-O {[%clk 0:02:52]}  Qb6 {[%clk 0:03:01]} 12. Nxd5 {[%clk 0:02:43]}  exd5 {[%clk 0:02:59]} 13. e6 {[%clk 0:02:44]}  O-O {[%clk 0:02:58]} 14. exd7 {[%clk 0:02:42]}  Bxd7 {[%clk 0:02:58]} 15. Rhf1 {[%clk 0:01:54]}  Bg4 {[%clk 0:02:56]} 16. Qd2 {[%clk 0:01:49]}  Nb4 {[%clk 0:02:47]} 17. Kb1 {[%clk 0:01:43]}  Nxd3 {[%clk 0:02:44]} 18. Qxd3 {[%clk 0:01:44]}  Bxf2 {[%clk 0:02:34]} 19. Rd2 {[%clk 0:01:31]}  Bc5 {[%clk 0:02:32]} 20. Ne5 {[%clk 0:01:30]}  Be6 {[%clk 0:02:30]} 21. Bxh6 {[%clk 0:01:16]}  gxh6 {[%clk 0:02:22]} 22. Qg3+ {[%clk 0:01:15]}  Kh7 {[%clk 0:02:20]} 23. Rf6 {[%clk 0:01:15]}  Be7 {[%clk 0:02:01]} 24. Qd3+ {[%clk 0:00:36]}  Kg7 {[%clk 0:02:01]} 25. Nd7 {[%clk 0:00:35]}  Qg1+ {[%clk 0:01:52]} 26. Rf1 {[%clk 0:00:35]}  Qxf1+ {[%clk 0:01:52]} 27. Qxf1 {[%clk 0:00:33]}  Bxd7 {[%clk 0:01:53]} 28. Rxd5 {[%clk 0:00:30]}  Be6 {[%clk 0:01:53]} 29. Rd1 {[%clk 0:00:30]}  Bxh4 {[%clk 0:01:48]} 30. g3 {[%clk 0:00:28]}  Bf6 {[%clk 0:01:47]} 31. a3 {[%clk 0:00:28]}  Rfd8 {[%clk 0:01:46]} 32. Re1 {[%clk 0:00:26]}  Rac8 {[%clk 0:01:47]} 33. Qf4 {[%clk 0:00:26]}  Rc4 {[%clk 0:01:43]} 34. Qe3 {[%clk 0:00:25]}  Rdc8 {[%clk 0:01:37]} 35. Qd3 {[%clk 0:00:23]}  R4c5 {[%clk 0:01:34]} 36. Rxe6 {[%clk 0:00:18]}  fxe6 {[%clk 0:01:34]} 37. Qd7+ {[%clk 0:00:18]}  Kg6 {[%clk 0:01:34]} 38. Qxe6 {[%clk 0:00:19]}  Rxc2 {[%clk 0:01:34]} 39. Qg4+ {[%clk 0:00:19]}  Kh7 {[%clk 0:01:30]} 40. Qf5+ {[%clk 0:00:18]}  Kg7 {[%clk 0:01:30]} 41. Qd7+ {[%clk 0:00:18]}  Kh8 {[%clk 0:01:30]} 0-1


[Site "https://www.chess.com"]

[Event "Titled Tuesday Blitz December 20 Late 2022"]
[White "Jumabayev, Rinat"]
[Black "Blanco Acevedo, Cristobal Jose"]
[WhiteFideId "13702661"]
[BlackFideId "3900525"]
[WhiteElo "2584"]
[BlackElo "2273"]
[Result "1-0"]
[Round "06"]
[TimeControl "180+1"]
[Date "2022.12.21"]
[WhiteClock "0:00:35"]
[BlackClock "0:00:03"]

1. Nf3 {[%clk 0:02:59]}  c5 {[%clk 0:02:59]} 2. c4 {[%clk 0:02:59]}  Nc6 {[%clk 0:02:59]} 3. Nc3 {[%clk 0:02:59]}  e5 {[%clk 0:02:58]} 4. g3 {[%clk 0:02:58]}  f5 {[%clk 0:02:49]} 5. d3 {[%clk 0:02:56]}  Nf6 {[%clk 0:02:36]} 6. Bg2 {[%clk 0:02:56]}  d6 {[%clk 0:02:30]} 7. O-O {[%clk 0:02:55]}  Be7 {[%clk 0:02:24]} 8. a3 {[%clk 0:02:55]}  a5 {[%clk 0:02:17]} 9. Rb1 {[%clk 0:02:56]}  O-O {[%clk 0:02:16]} 10. e3 {[%clk 0:02:55]}  Qe8 {[%clk 0:02:08]} 11. d4 {[%clk 0:02:54]}  e4 {[%clk 0:02:05]} 12. Ne1 {[%clk 0:02:54]}  Kh8 {[%clk 0:01:59]} 13. f4 {[%clk 0:02:54]}  Ng4 {[%clk 0:01:47]} 14. Nd5 {[%clk 0:02:47]}  Bd8 {[%clk 0:01:47]} 15. h3 {[%clk 0:02:43]}  Nf6 {[%clk 0:01:43]} 16. Nc2 {[%clk 0:02:30]}  Nxd5 {[%clk 0:01:35]} 17. cxd5 {[%clk 0:02:29]}  Ne7 {[%clk 0:01:34]} 18. dxc5 {[%clk 0:02:29]}  dxc5 {[%clk 0:01:34]} 19. b4 {[%clk 0:02:30]}  axb4 {[%clk 0:01:23]} 20. axb4 {[%clk 0:02:31]}  c4 {[%clk 0:01:24]} 21. Bb2 {[%clk 0:02:30]}  b5 {[%clk 0:01:20]} 22. Qd4 {[%clk 0:02:26]}  Rf7 {[%clk 0:01:16]} 23. Rfd1 {[%clk 0:02:26]}  Bd7 {[%clk 0:01:15]} 24. Ra1 {[%clk 0:02:17]}  Rxa1 {[%clk 0:00:57]} 25. Rxa1 {[%clk 0:02:18]}  Nc8 {[%clk 0:00:57]} 26. Qd2 {[%clk 0:02:08]}  Bb6 {[%clk 0:00:56]} 27. Bd4 {[%clk 0:02:07]}  Qd8 {[%clk 0:00:56]} 28. Be5 {[%clk 0:02:06]}  Be8 {[%clk 0:00:52]} 29. Ra8 {[%clk 0:02:01]}  Ra7 {[%clk 0:00:48]} 30. Rxa7 {[%clk 0:01:57]}  Bxa7 {[%clk 0:00:47]} 31. g4 {[%clk 0:01:58]}  fxg4 {[%clk 0:00:37]} 32. hxg4 {[%clk 0:01:56]}  Qh4 {[%clk 0:00:36]} 33. Qe2 {[%clk 0:01:47]}  Bd7 {[%clk 0:00:34]} 34. Bxe4 {[%clk 0:01:38]}  Bxg4 {[%clk 0:00:31]} 35. Qh2 {[%clk 0:01:37]}  Qxh2+ {[%clk 0:00:26]} 36. Kxh2 {[%clk 0:01:37]}  Bb6 {[%clk 0:00:18]} 37. f5 {[%clk 0:01:32]}  Kg8 {[%clk 0:00:16]} 38. Kg3 {[%clk 0:01:30]}  Bd1 {[%clk 0:00:16]} 39. Nd4 {[%clk 0:01:30]}  Bxd4 {[%clk 0:00:16]} 40. Bxd4 {[%clk 0:01:27]}  Nd6 {[%clk 0:00:16]} 41. Bb1 {[%clk 0:01:27]}  Be2 {[%clk 0:00:13]} 42. Bc5 {[%clk 0:01:19]}  Nb7 {[%clk 0:00:12]} 43. Bd4 {[%clk 0:00:57]}  Kf7 {[%clk 0:00:11]} 44. Kf2 {[%clk 0:00:51]}  Bd3 {[%clk 0:00:10]} 45. Bxd3 {[%clk 0:00:51]}  cxd3 {[%clk 0:00:11]} 46. Be5 {[%clk 0:00:44]}  g6 {[%clk 0:00:07]} 47. fxg6+ {[%clk 0:00:40]}  Kxg6 {[%clk 0:00:08]} 48. e4 {[%clk 0:00:40]}  Kg5 {[%clk 0:00:03]} 49. Ke3 {[%clk 0:00:40]}  h5 {[%clk 0:00:04]} 50. Kxd3 {[%clk 0:00:40]}  Kg4 {[%clk 0:00:04]} 51. d6 {[%clk 0:00:37]}  Kg5 {[%clk 0:00:04]} 52. Kd4 {[%clk 0:00:35]}  h4 {[%clk 0:00:03]} 53. Kd5 {[%clk 0:00:35]}  Nd8 {[%clk 0:00:03]} 54. d7 {[%clk 0:00:35]} 1-0


[Site "https://www.chess.com"]

[Event "Titled Tuesday Blitz December 20 Late 2022"]
[White "Kamsky, Gata"]
[Black "Begmuratov, Khumoyun"]
[WhiteFideId "2000024"]
[BlackFideId "14210207"]
[WhiteElo "2666"]
[BlackElo "2267"]
[Result "1/2-1/2"]
[Round "06"]
[TimeControl "180+1"]
[Date "2022.12.20"]
[WhiteClock "0:00:23"]
[BlackClock "0:00:05"]

1. e4 {[%clk 0:02:57]}  e5 {[%clk 0:02:59]} 2. Nf3 {[%clk 0:02:55]}  Nc6 {[%clk 0:03:00]} 3. Bb5 {[%clk 0:02:53]}  Nf6 {[%clk 0:02:59]} 4. O-O {[%clk 0:02:52]}  Nxe4 {[%clk 0:02:59]} 5. d4 {[%clk 0:02:52]}  Nd6 {[%clk 0:02:59]} 6. Bxc6 {[%clk 0:02:52]}  dxc6 {[%clk 0:03:00]} 7. dxe5 {[%clk 0:02:53]}  Nf5 {[%clk 0:03:00]} 8. Qxd8+ {[%clk 0:02:53]}  Kxd8 {[%clk 0:03:01]} 9. Rd1+ {[%clk 0:02:53]}  Ke8 {[%clk 0:03:01]} 10. Nc3 {[%clk 0:02:54]}  Be7 {[%clk 0:03:00]} 11. h3 {[%clk 0:02:54]}  h5 {[%clk 0:02:56]} 12. g3 {[%clk 0:02:54]}  Be6 {[%clk 0:02:54]} 13. Bf4 {[%clk 0:02:51]}  Rd8 {[%clk 0:02:34]} 14. b3 {[%clk 0:02:38]}  a5 {[%clk 0:02:21]} 15. Kg2 {[%clk 0:02:17]}  Bb4 {[%clk 0:02:16]} 16. Ne2 {[%clk 0:02:08]}  Bd5 {[%clk 0:02:09]} 17. Bg5 {[%clk 0:01:58]}  Be7 {[%clk 0:02:00]} 18. Bxe7 {[%clk 0:01:55]}  Kxe7 {[%clk 0:02:01]} 19. c4 {[%clk 0:01:46]}  Be4 {[%clk 0:01:57]} 20. Nc3 {[%clk 0:01:47]}  Bxf3+ {[%clk 0:01:32]} 21. Kxf3 {[%clk 0:01:47]}  h4 {[%clk 0:01:26]} 22. g4 {[%clk 0:01:46]}  Nd4+ {[%clk 0:01:26]} 23. Ke4 {[%clk 0:01:46]}  Ne6 {[%clk 0:01:21]} 24. f4 {[%clk 0:01:46]}  g5 {[%clk 0:01:18]} 25. Ne2 {[%clk 0:01:34]}  gxf4 {[%clk 0:00:59]} 26. Nxf4 {[%clk 0:01:33]}  Ng5+ {[%clk 0:00:59]} 27. Ke3 {[%clk 0:01:15]}  Rhe8 {[%clk 0:00:55]} 28. Ng2 {[%clk 0:01:05]}  Nxh3 {[%clk 0:00:29]} 29. Nxh4 {[%clk 0:01:03]}  Rxd1 {[%clk 0:00:25]} 30. Rxd1 {[%clk 0:01:02]}  Rg8 {[%clk 0:00:21]} 31. Rh1 {[%clk 0:00:54]}  Ng5 {[%clk 0:00:19]} 32. Nf5+ {[%clk 0:00:54]}  Kd7 {[%clk 0:00:16]} 33. Rh6 {[%clk 0:00:49]}  Ne6 {[%clk 0:00:13]} 34. Kf3 {[%clk 0:00:48]}  Ng5+ {[%clk 0:00:13]} 35. Kf4 {[%clk 0:00:48]}  Ne6+ {[%clk 0:00:14]} 36. Kg3 {[%clk 0:00:48]}  Ng5 {[%clk 0:00:13]} 37. Rh2 {[%clk 0:00:45]}  Ne4+ {[%clk 0:00:11]} 38. Kf4 {[%clk 0:00:45]}  Nc5 {[%clk 0:00:11]} 39. Rd2+ {[%clk 0:00:44]}  Ke8 {[%clk 0:00:12]} 40. Nd4 {[%clk 0:00:42]}  Rh8 {[%clk 0:00:10]} 41. Nf3 {[%clk 0:00:39]}  Ne6+ {[%clk 0:00:10]} 42. Kg3 {[%clk 0:00:39]}  Ke7 {[%clk 0:00:09]} 43. Nd4 {[%clk 0:00:37]}  Nxd4 {[%clk 0:00:05]} 44. Rxd4 {[%clk 0:00:37]}  Ke6 {[%clk 0:00:05]} 45. Rf4 {[%clk 0:00:37]}  Rd8 {[%clk 0:00:05]} 46. Rf6+ {[%clk 0:00:36]}  Ke7 {[%clk 0:00:05]} 47. g5 {[%clk 0:00:37]}  Rd2 {[%clk 0:00:05]} 48. a4 {[%clk 0:00:36]}  Rd3+ {[%clk 0:00:05]} 49. Rf3 {[%clk 0:00:36]}  Rd4 {[%clk 0:00:04]} 50. Rf4 {[%clk 0:00:35]}  Rd3+ {[%clk 0:00:04]} 51. Rf3 {[%clk 0:00:36]}  Rd4 {[%clk 0:00:05]} 52. Rf4 {[%clk 0:00:36]}  Rd2 {[%clk 0:00:05]} 53. Rf6 {[%clk 0:00:35]}  Re2 {[%clk 0:00:04]} 54. Kf4 {[%clk 0:00:29]}  Rb2 {[%clk 0:00:04]} 55. Rh6 {[%clk 0:00:27]}  Rxb3 {[%clk 0:00:04]} 56. Rh7 {[%clk 0:00:27]}  Ke6 {[%clk 0:00:04]} 57. Rh6+ {[%clk 0:00:27]}  Ke7 {[%clk 0:00:04]} 58. Rh7 {[%clk 0:00:28]}  Kf8 {[%clk 0:00:04]} 59. e6 {[%clk 0:00:25]}  fxe6 {[%clk 0:00:04]} 60. Rxc7 {[%clk 0:00:25]}  Rb4 {[%clk 0:00:04]} 61. Ke5 {[%clk 0:00:26]}  Rxc4 {[%clk 0:00:04]} 62. Rxb7 {[%clk 0:00:26]}  Rxa4 {[%clk 0:00:04]} 63. Ra7 {[%clk 0:00:26]}  Rg4 {[%clk 0:00:04]} 64. Kf6 {[%clk 0:00:26]}  Rf4+ {[%clk 0:00:04]} 65. Kxe6 {[%clk 0:00:26]}  a4 {[%clk 0:00:04]} 66. Kd6 {[%clk 0:00:26]}  Rc4 {[%clk 0:00:03]} 67. Ke6 {[%clk 0:00:24]}  Rf4 {[%clk 0:00:03]} 68. Kd6 {[%clk 0:00:25]}  Rg4 {[%clk 0:00:03]} 69. Kxc6 {[%clk 0:00:25]}  Rxg5 {[%clk 0:00:03]} 70. Rxa4 {[%clk 0:00:24]}  Rg6+ {[%clk 0:00:04]} 71. Kd5 {[%clk 0:00:24]}  Kg7 {[%clk 0:00:04]} 72. Re4 {[%clk 0:00:23]}  Rf6 {[%clk 0:00:04]} 73. Ke5 {[%clk 0:00:23]}  Kf7 {[%clk 0:00:05]} 74. Rf4 {[%clk 0:00:23]}  Rxf4 {[%clk 0:00:05]} 75. Kxf4 {[%clk 0:00:23]} 1/2-1/2


[Site "https://www.chess.com"]